Cogmind - Beta 13 @@@ ROGUE MODE // 2024.07.25 @ 16:15:28 Player: Tuwiuu Result: Destroyed by D-53 Grenadier with Mini Grenade Launcher Performance ------------- Evolutions (0) 0 Regions Visited (4) 800 Robots Destroyed (25) 125 Value Destroyed (400) 400 Prototype IDs (0) 0 Alien Tech Used (0) 0 Bonus (34) 34 TOTAL SCORE: 1359 Bonus ------- Follower Combat Kills 95 Friendly Fire -61 Cogmind --------- Core Integrity 0/250 Matter 205/300 Energy 43/100 System Corruption 4% Temperature Cool (10) Movement Core (450) Ox8 Location -9/Mines Parts ------- > --- POWER (1) -------- (None) > --- PROPULSION (2) --- (None) > --- UTILITY (2) ------ Huge Storage Unit Weight Redist. System > --- WEAPON (2) ------- (None) > --- INVENTORY (25) --- Ion Engine Ion Engine Wheel Wheel Wheel Wheel Compact Wheel Large Storage Unit High-capacity Storage Unit Terrain Scanner Hacking Suite EM Pulse Gun Light Cannon Makeshift Axe Peak State ------------ > --- POWER ------------ Ion Engine > --- PROPULSION ------- Wheel Wheel > --- UTILITY ---------- Large Storage Unit Weight Redist. System > --- WEAPON ----------- Heavy EM Pulse Gun Heavy EM Pulse Gun > --- INVENTORY -------- Ion Engine Ion Engine Wheel Wheel Wheel Wheel Compact Wheel Terrain Scanner Hacking Suite EM Pulse Gun Heavy EM Pulse Gun Heavy EM Pulse Gun Light Cannon Rocket Launcher Mining Laser [Rating: 12] Favorites ----------- Power Ion Engine Engine Ion Engine Propulsion Wheel Leg Aluminum Leg Wheel Wheel Utility Weight Redist. System Device Weight Redist. System Storage Large Storage Unit Processor Signal Interpreter Weapon Heavy EM Pulse Gun Energy Gun Heavy EM Pulse Gun Ballistic Gun Assault Rifle Ballistic Cannon Light Cannon Launcher Rocket Launcher Special Weapon Mining Laser Build | -11 -10 -10 -10 -9 ------- Run | Yrd Mat Min Exi Min Slots Evolved . | . . . . . Power . | . . . . . Propulsion . | . . . . . Utility . | . . . . . Weapon . | . . . . . Parts Attached 34 | . 23 5 1 5 Power 2 | . 2 . . . Engine 2 | . 2 . . . Core . | . . . . . Reactor . | . . . . . Propulsion 7 | . 7 . . . Treads . | . . . . . Leg . | . . . . . Wheel 7 | . 7 . . . Hover . | . . . . . Flight . | . . . . . Utility 5 | . 3 . 1 1 Device 1 | . 1 . . . Storage 3 | . 1 . 1 1 Processor 1 | . 1 . . . Hackware . | . . . . . Protection . | . . . . . Artifact . | . . . . . Weapon 20 | . 11 5 . 4 Energy Gun 12 | . 6 3 . 3 Energy Cannon . | . . . . . Ballistic Gun . | . . . . . Ballistic Cannon 2 | . 2 . . . Launcher 3 | . . 2 . 1 Special Weapon 3 | . 3 . . . Impact Weapon . | . . . . . Slashing Weapon . | . . . . . Piercing Weapon . | . . . . . Special Melee Weapon . | . . . . . Unidentified Prototypes . | . . . . . Parts Lost 11 | . 3 . . 8 Power 1 | . . . . 1 Propulsion 4 | . 2 . . 2 Utility . | . . . . . Weapon 6 | . 1 . . 5 Highest Loss Streak 7 | . 2 . . 7 To Critical Strikes . | . . . . . Average Slot Usage (%) 98 | . 98 100 100 94 Engine 13 | . 14 14 14 13 Leg 1 | . 2 . . . Wheel 25 | . 24 28 28 25 Device 12 | . 10 14 14 14 Storage 14 | . 14 14 14 14 Processor 1 | . 1 . . . Energy Gun 22 | . 19 26 28 23 Ballistic Gun 1 | . 3 . . . Ballistic Cannon 1 | . 2 . . . Special Weapon 1 | . 2 . . . Naked Turns . | . . . . . Heaviest Build 92 | 11 31 32 51 92 Greatest Support 26 | 20 26 26 26 26 Greatest Overweight (x) 5 | . 2 1 1 5 Average Overweight (x) . | . . 1 1 2 Largest Inventory Capacity 25 | . 15 15 20 25 Average Capacity 15 | . 14 15 16 22 Most Carried 16 | . 15 15 16 16 Average Carried 13 | . 13 15 15 15 Final Capacity 25 | 8 15 15 20 25 Final Carried 16 | 6 15 15 16 14 Class Distribution -------------------- 100% | Mutant Dominant Class ---------------- Mutant | -10/Materials Mutant | -10/Mines Mutant | -10/Exiles Mutant | -9/Mines Resources | -11 -10 -10 -10 -9 ----------- Run | Yrd Mat Min Exi Min Matter Collected 853 | 200 324 181 96 52 Remotely . | . . . . . Salvage Created 619 | . 383 175 . 61 Parts 50 | . 27 22 . 1 Haulers Intercepted 2 | . 2 . . . Recyclers Shooed 5 | . 5 . . . Parts Field Recycled . | . . . . . Retrieved Matter . | . . . . . Parts Self-Destructed . | . . . . . Prevented . | . . . . . Kills | -11 -10 -10 -10 -9 ------- Run | Yrd Mat Min Exi Min Combat Hostiles Destroyed 33 | . 8 9 . 16 Guns 8 | . 3 5 . . Cannons 5 | . 5 . . . AOE 20 | . . 4 . 16 Classes Destroyed 8 | . 7 . . 1 Worker 1 | . 1 . . . Hauler 2 | . 2 . . . Recycler 1 | . 1 . . . Operator 1 | . 1 . . . Watcher 2 | . 2 . . . Swarmer 12 | . 6 6 . . Grunt 6 | . 2 3 . 1 Assembled 15 | . . . . 15 Best Kill Streak 15 | . 5 3 . 15 Combat Bots Only 15 | . 3 3 . 15 Max Kills in Single Turn 4 | . 1 2 . 4 Gunslinging 1 | . . 1 . . Exploded 4 | . . 2 . 4 Melee . | . . . . . Uniques/NPCs Destroyed . | . . . . . Combat | -11 -10 -10 -10 -9 -------- Run | Yrd Mat Min Exi Min Hostile Shots Fired 104 | . 64 19 . 21 Missed 18 | . 11 3 . 4 Damage Taken 1143 | . 507 156 . 480 Core 256 | . 65 33 . 158 Absorbed by Shields . | . . . . . Core Remaining (%) 100 | 100 . . . . Volleys Fired 77 | . 58 7 . 12 Largest 2 | . 2 2 . 2 Hottest 100 | . 100 90 . 90 Shots Fired 128 | . 100 12 . 16 Gun 72 | . 55 9 . 8 Cannon 30 | . 30 . . . Launcher 11 | . . 3 . 8 Special 15 | . 15 . . . Kinetic 65 | . 65 . . . Thermal 25 | . 25 . . . Explosive 11 | . . 3 . 8 Electromagnetic 27 | . 10 9 . 8 Robot Hit Streak 7 | . 7 3 . 6 Robot Miss Streak 4 | . 4 2 . 4 Penetration Max . | . . . . . Secondary Targets 1 | . . 1 . . Max Gunslinging Chain 1 | . . 1 . . Shots Hit Robots 70 | . 56 6 . 8 Core Hits 60 | . 19 10 . 31 Critical Kills . | . . . . . Critical Parts Destroyed 1 | . 1 . . . Critical Strikes 3 | . 3 . . . Destroy 1 | . 1 . . . Blast 2 | . 2 . . . Melee Attacks . | . . . . . Impact . | . . . . . Slashing . | . . . . . Piercing . | . . . . . Sneak Attacks . | . . . . . Combat Hostiles . | . . . . . Follow-up Attacks . | . . . . . Damage Inflicted 2443 | . 859 543 . 1041 Guns 643 | . 486 80 . 77 Cannons 349 | . 349 . . . Explosions 1451 | . 24 463 . 964 Melee . | . . . . . Ramming . | . . . . . Kinetic 646 | . 646 . . . Thermal 186 | . 108 . . 78 Explosive 1349 | . . 463 . 886 Electromagnetic 262 | . 105 80 . 77 Impact . | . . . . . Slashing . | . . . . . Piercing . | . . . . . Highest Corruption 4 | . 4 4 4 4 Average Corruption 3 | . 3 4 4 4 Corruption Purged . | . . . . . Corruption Blocked . | . . . . . Effects 65 | . 42 5 12 6 Message Errors 15 | . 9 2 3 1 Matter Fused 16 | . 8 2 3 3 Heat Flow Errors 8 | . 6 . 2 . Energy Discharges 6 | . 4 . 2 . Parts Fused 2 | . 1 . . 1 Data Loss (minor) 12 | . 8 1 2 1 Data Loss (major) 5 | . 5 . . . Weapon Failures 1 | . 1 . . . Overload Shots . | . . . . . Overflow Damage 35 | . . . . 35 Projectiles . | . . . . . Explosions 35 | . . . . 35 Melee . | . . . . . Knockbacks 5 | . 5 . . . Impact . | . . . . . Kinetic 4 | . 4 . . . Secondary 1 | . 1 . . . Self-Inflicted Damage 29 | . . . . 29 Shots 1 | . . . . 1 Rammed . | . . . . . Targets Rammed . | . . . . . Kicked . | . . . . . Crushed . | . . . . . Highest Temperature 255 | . 255 90 181 88 Average Temperature 65 | . 70 35 75 40 Received Heat Transfer 141 | . 96 33 . 12 Siege Activations . | . . . . . Robots Corrupted . | . . . . . Combat Hostiles . | . . . . . Parts Fried 1 | . 1 . . . Impact Corruptions . | . . . . . Robots Melted . | . . . . . Combat Hostiles . | . . . . . Parts Melted . | . . . . . Heat Transferred 300 | . 250 . . 50 Parts Sabotaged . | . . . . . Parts Stolen . | . . . . . Parts Stripped . | . . . . . Power Chain Reactions 2 | . 1 . . 1 Alert | -11 -10 -10 -10 -9 ------- Run | Yrd Mat Min Exi Min Peak Influence 269 | . 167 269 . 107 Initial 3 | . . 3 . . Average 56 | . 30 181 . 74 Maximum Alert Level 1 | . . 1 . . Low Security (%) 93 | . 100 52 . 100 Level 1 6 | . . 47 . . Level 2 . | . . . . . Level 3 . | . . . . . Level 4 . | . . . . . Level 5 . | . . . . . High Security . | . . . . . Max Security . | . . . . . Squads Dispatched 2 | . 1 1 . . Investigation 1 | . 1 . . . Extermination . | . . . . . Reinforcement . | . . . . . Assault 1 | . . 1 . . Garrison . | . . . . . Intercept . | . . . . . Searches Triggered . | . . . . . Construction Impeded . | . . . . . Haulers Reinforced . | . . . . . Active Scanning Responses . | . . . . . Cargo Convoy Interrupts . | . . . . . Stealth | -11 -10 -10 -10 -9 --------- Run | Yrd Mat Min Exi Min Distress Signals 1 | . 1 . . . Communications Jammed . | . . . . . Distress Signals . | . . . . . Times Spotted 42 | . 17 11 . 14 Peak Tracking Total 6 | . 5 4 . 6 Tactical Retreats . | . . . . . Traps | -11 -10 -10 -10 -9 ------- Run | Yrd Mat Min Exi Min Traps Triggered 4 | . 4 . . . Indirectly . | . . . . . Trap Hack Attempts . | . . . . . Triggered . | . . . . . Disarmed . | . . . . . Reprogrammed . | . . . . . Reused . | . . . . . Traps Extracted . | . . . . . Installed . | . . . . . Triggered . | . . . . . Machines | -11 -10 -10 -10 -9 ---------- Run | Yrd Mat Min Exi Min Machines Disabled 2 | . 1 . . 1 Max in Single Turn 1 | . 1 . . 1 Machines Repaired . | . . . . . Machines Dismantled . | . . . . . Machines Sabotaged . | . . . . . Overloaded Fab Kills . | . . . . . Hacking | -11 -10 -10 -10 -9 --------- Run | Yrd Mat Min Exi Min Machines Accessed 7 | . 7 . . . Terminals 7 | . 7 . . . Fabricators . | . . . . . Repair Stations . | . . . . . Recycling Units . | . . . . . Scanalyzers . | . . . . . Garrison Access . | . . . . . Total Hacks 20 | . 20 . . . Successful 10 | . 10 . . . Failed 10 | . 10 . . . Catastrophic 1 | . 1 . . . Database Lockouts . | . . . . . Manual 10 | . 10 . . . Terminals 20 | . 20 . . . Fabricators . | . . . . . Repair Stations . | . . . . . Recycling Units . | . . . . . Scanalyzers . | . . . . . Garrison Access . | . . . . . Terminal Hacks 8 | . 8 . . . Alert Level 1 | . 1 . . . Recall Investigation 1 | . 1 . . . Hauler Manifests 1 | . 1 . . . Zone Layout 5 | . 5 . . . Fabricator Hacks . | . . . . . Repair Station Hacks . | . . . . . Recycling Unit Hacks . | . . . . . Scanalyzer . | . . . . . Garrison Access Hacks . | . . . . . Unauthorized Hacks 2 | . 2 . . . Terminals 2 | . 2 . . . Assimilate 1 | . 1 . . . Operators 1 | . 1 . . . Fabricators . | . . . . . Repair Stations . | . . . . . Recycling Units . | . . . . . Scanalyzers . | . . . . . Garrison Access . | . . . . . Data Cores Recovered . | . . . . . Used . | . . . . . Hacking Detections 7 | . 7 . . . Full Trace Events . | . . . . . Feedback Events . | . . . . . Feedback Blocked . | . . . . . Robot Schematics Acquired . | . . . . . Robots Built . | . . . . . Authchips . | . . . . . Time . | . . . . . Total Robot Build Rating . | . . . . . Part Schematics Acquired . | . . . . . Parts Built . | . . . . . Authchips . | . . . . . Time . | . . . . . Total Part Build Rating . | . . . . . Parts Repaired . | . . . . . Time . | . . . . . Parts Recycled . | . . . . . Recycled Matter . | . . . . . Retrieved Matter . | . . . . . Retrieved Components . | . . . . . Parts Scanalyzed . | . . . . . Part Schematics Acquired . | . . . . . Parts Damaged . | . . . . . Bothacking | -11 -10 -10 -10 -9 ------------ Run | Yrd Mat Min Exi Min Used RIF Installer . | . . . . . Robots Hacked . | . . . . . Non-combat . | . . . . . Combat . | . . . . . Robot Hacks Applied . | . . . . . Relay Couplers Released . | . . . . . Fabnet Peak Effective % . | . . . . . Robots Rewired . | . . . . . Allies Hacked . | . . . . . Hacks Repelled . | . . . . . Allies | -11 -10 -10 -10 -9 -------- Run | Yrd Mat Min Exi Min Total Allies 2 | . 1 1 . . Largest Group 1 | . 1 1 1 1 Highest-Rated Group 31 | . 10 31 31 31 Highest-Rated Ally 31 | . 10 31 31 31 Total Orders . | . . . . . Ally Attacks 21 | . . 1 4 16 Total Damage 210 | . . 21 22 167 Kills 3 | . . 1 1 1 Allies Corrupted . | . . . . . Allies Melted . | . . . . . Intel | -11 -10 -10 -10 -9 ------- Run | Yrd Mat Min Exi Min Robot Analysis Total . | . . . . . Derelict Logs Recovered 3 | . . . . 3 Drone Launches . | . . . . . Drone Recoveries . | . . . . . Exploration | -11 -10 -10 -10 -9 ------------- Run | Yrd Mat Min Exi Min Turns Passed 3209 | . 1987 375 606 241 Spaces Moved 2001 | 1 878 326 615 181 Core . | . . . . . Treads . | . . . . . Legs 178 | 1 177 . . . Wheels 1823 | . 701 326 615 181 Hover . | . . . . . Flight . | . . . . . Fastest Speed 80 | 120 80 95 95 95 Average Speed 98 | 120 99 95 95 110 Slowest Speed 155 | 120 120 95 95 155 Overloaded Moves . | . . . . . Propulsion Burnouts . | . . . . . Robots Hopped . | . . . . . Cave-ins Triggered . | . . . . . Exploration Rate (%) 57 | 1 94 50 93 48 Regions Visited 4 Branch Regions 3 Pre-discovered Areas 1 | . . . . 1 Known Exits Taken . | . . . . . Unknown Exits Taken 4 | 1 1 1 1 . Scrap Searched 3 | . . 2 . 1 Spaces Dug 7 | . 7 . . . Terrain Destroyed 99 | . 12 38 . 49 Melee . | . . . . . Projectile 9 | . 9 . . . AOE 90 | . 3 38 . 49 Terrain Rammed . | . . . . . Walls Destroyed . | . . . . . Machines Disabled . | . . . . . Actions | -11 -10 -10 -10 -9 --------- Run | Yrd Mat Min Exi Min Total 3078 | . 1859 377 637 205 Wait 929 | . 867 38 17 7 Move 1997 | . 877 325 614 181 Hop . | . . . . . Pick Up 21 | . 18 1 2 . Fast Attach 9 | . 9 . . . Attach 6 | . 3 . . 3 Detach 2 | . 2 . . . Swap 19 | . 11 5 1 2 Drop 17 | . 14 1 2 . Fire 77 | . 58 7 . 12 Melee . | . . . . . Ram . | . . . . . Kick . | . . . . . Crush . | . . . . . Escape Stasis . | . . . . . Rewire 1 | . . . 1 . Trap . | . . . . . Miscellaneous . | . . . . . Route ------- -11/Scrapyard -10/Materials (discovered 6 exits: [*Mat x3] / [*Min x2] / [*Sub]) -10/Mines (discovered 2 exits: [*Mat] / *Exi) -10/Exiles (discovered 2 exits: [*Min x2]) -9/Mines History --------- Turn | Location | Event 1 | -11/Scrapyard | Discovered new exit (range 0) 1 | -11/Scrapyard | Entered Materials 28 | -10/Materials | Discovered new exit (range 21) 121 | -10/Materials | Discovered new exit (range 13) 322 | -10/Materials | Build established: Mutant 539 | -10/Materials | Discovered new exit (range 6) 598 | -10/Materials | Discovered new exit (range 8) 1309 | -10/Materials | Discovered new exit (range 3) 1705 | -10/Materials | Discovered new exit (range 8) 1988 | -10/Materials | Entered Mines 2059 | -10/Mines | Received a Rocket Launcher from a helpful Derelict 2129 | -10/Mines | Discovered new exit (range 3) 2132 | -10/Mines | Met a Derelict testing a Signal Generator 2249 | -10/Mines | Deemed a non-threat by the Exiles lab entrance 2249 | -10/Mines | Discovered new exit (range 5) 2363 | -10/Mines | Entered Exiles 2363 | -10/Exiles | Found Exiles lab destroyed 2363 | -10/Exiles | Accompanied by 1 ally 2378 | -10/Exiles | Discovered new exit (range 15) 2805 | -10/Exiles | Discovered new exit (range 10) 2969 | -10/Exiles | Entered Mines 2969 | -9/Mines | Accompanied by 1 ally 3067 | -9/Mines | Learned Materials trap positions 3155 | -9/Mines | Assembled infested the area 3162 | -9/Mines | Learned 4 Materials zone layouts 3177 | -9/Mines | Core integrity fell below 50% 3209 | -9/Mines | Core integrity fell below 20% 3210 | -9/Mines | Destroyed by D-53 Grenadier with Mini Grenade Launcher Last Messages --------------- 03186_ U-05 Engineer lays Concrete. 03188_ as-91820 destroyed. 03189_ U-05 Engineer lays Concrete. 03190_ as-66596 destroyed. 03191_ U-05 Engineer lays Concrete. 03198_ The unstable cave ceiling collapses. 03199_ U-05 Engineer lays Concrete. 03201_ C-30 ARC bursts open, deploying its payload. 03201_ D-53 Grenadier unfolds itself. 03202_ U-05 Engineer lays Concrete. 03204_ Rocket Launcher destroyed. 03205_ The unstable cave ceiling collapses. 03205_ U-05 Engineer lays Concrete. 03206_ Hvy. EM Pulse Gun destroyed. 03206_ U-05 Engineer destroyed. 03206_ Ion Engine destroyed. 03208_ Hvy. EM Pulse Gun destroyed. 03208_ 9O-M6Z(g) destroyed. 03208_ Hvy. EM Pulse Gun destroyed. 03208_ Wheel destroyed. Map ----- +----------------------------------------------------+ | ??????????????????????????????????????????????## | | ??????????????????????????????????????????##### | | ??????????????????????????????????????????# | | ??????????????????????????????????????????# ## | | ?????????????????????????????????????????????# | | ?????????????????????????????????????????????## | | ??????????????????????????????????????????????## | | ???????????????????????????????????????????????# | | ???????????????????????????????????????????????# | | ???????????????????????????????????????????????# | | ???????????????????????????????????????????????# | | ???????????????????????????????????????????????#! | | ???????????????????##???????????????##???## #### | | ??????????????????## ??????????????# | | ??????????????????# ?????????????? #???####### | | ??????????????????# ??????????###? #?????????# | | ?????????????????## ?????????# ##%#?????????## | | ????????????????## #???????# ###????????? | | ??????????????### #?????# ##???????? | | ??????????????## ????# d #???????? | | ???????????#### #### #???????? | | ?????????? d ?????????? | | ??????????? #?????????? | | ?????????????# #??????####?? | | ??????????????# ##?????## ##? | | ??????????????# # @ ####??# ## | | ??????????????# % #??# | | ??????????????#### # #?## | | ?????????????????#??# < ### ### | | ??????????????????# ##?# | | ??????????????????## ### ##??# ## | | ???????????????????####???#######???############# | | ????????????????????????????????????????????????? | | ????????????????????????????????????????????????? | | | | | | | | | | | | | | | | | | | | | | | | | | | | | | | | | +----------------------------------------------------+ Best States ------------- Heat Dissipation 25 Energy Generation 10 Energy Capacity 250 Matter Stores 300 Matter Capacity 300 Sight Range 16 Terrain Scan Density 10 Additional Mass Support 6 Evasion (%) 55 Item Schematics ----------------- None Robot Schematics ------------------ None Fabricated ------------ Nothing Alien Tech Used ----------------- None Achievements -------------- GoHome() Challenges ------------ None Game ------ Seed NavigationTrapMeganuke Manual? 0 Play Time 00:30:53 Cumulative 19.8 hours Start 2024.07.25 @ 15:43:44 End 2024.07.25 @ 16:15:28 Sessions 1 Manual Loads 0 Difficulty Rogue Special Mode None Game No. 9 Rogue 9 Adventurer 0 Explorer 0 Win Type - Total 0 Types 0/0/0/0/0/0/0/0/0 Lore% 23 Gallery% 20 Achievement% 21 Wizard Run 0 Options --------- Layout 0 ASCII 0 Keyboard 0 Movement Mouse Keybinds 0 Fullscreen 2 Font 36/Smallcaps Map View 76x50 Zoom Use 0% Tactical HUD 1 Map Filters NONE Filters NONE Steam 1 RUN: 893087cc-7faf-483c-beb2-631a99cfe975